fUSD/lending_fUSD_20251112
["ID","MTS","AMOUNT","RATE_DAILY","PERIOD"]
[393684113,1762923042727,-1437.91,0.00038699,20]
[393684114,1762923042737,-1437.91,0.00038699,20]
[393684115,1762923042751,-500.0,0.00038699,20]
[393684116,1762923042762,-366.40130104,0.00038699,20]
[393684117,1762923042773,-177.68122579,0.00038699,20]
[393684118,1762923042784,-456.77495087,0.00038699,20]
[393684119,1762923042797,-500.0,0.00038699,20]
[393684120,1762923042807,-500.0,0.00038699,20]
[393684121,1762923042818,-500.0,0.00038699,20]
[393684122,1762923042831,-500.0,0.00038699,20]
[393684123,1762923042841,-497.80429033,0.00038699,20]
[393684124,1762923042851,-197.468356,0.00038699,2]
[393684125,1762923042861,-504.38391945,0.00038699,20]
[393684126,1762923042871,-427.25108668,0.00038699,20]
[393684127,1762923042882,-435.44273281,0.00038699,20]
[393684128,1762923042893,-500.0,0.00038699,20]
[393684129,1762923042903,-482.17333435,0.00038699,20]
[393684130,1762923042914,-596.82761288,0.00038699,20]
[393684131,1762923042924,-500.0,0.00038699,20]
[393684132,1762923042934,-500.0,0.00038699,20]
[393684133,1762923042949,-536.56,0.00038699,20]
[393684134,1762923042959,-536.56,0.00038699,20]
[393684135,1762923042970,-500.0,0.00038699,20]
[393684136,1762923042980,-193.97297975,0.00038699,20]
[393684137,1762923042990,-342.6236814,0.00038699,20]
[393684138,1762923043000,-422.3712278,0.00038699,20]
[393684139,1762923043011,-500.0,0.00038699,20]
[393684141,1762923043022,-323.47899861,0.00038699,20]
[393684142,1762923043032,-500.0,0.00038699,20]
[393684143,1762923043042,-419.47266842,0.00038699,20]
[393684144,1762923043052,-500.0,0.00038699,20]
[393684145,1762923043063,-500.0,0.00038699,20]
[393684146,1762923043073,-500.0,0.00038699,20]
[393684147,1762923043083,-500.0,0.00038699,20]
[393684148,1762923043093,-500.0,0.00038699,20]
[393684149,1762923043103,-500.0,0.00038699,20]
[393684150,1762923043115,-500.0,0.00038699,10]
[393684151,1762923043126,-500.0,0.00038699,20]
[393684152,1762923043137,-236.57401158,0.00038699,20]
[393684153,1762923043147,-500.0,0.00038699,20]
[393684154,1762923043157,-363.53880987,0.00038699,20]
[393684155,1762923043167,-181.5110971,0.00038699,20]
[393684156,1762923043178,-783.72,0.00038699,2]
[393684157,1762923043187,-500.0,0.00038699,20]
[393684158,1762923043198,-500.0,0.00038699,20]
[393684159,1762923043208,-500.0,0.00038699,20]
[393684160,1762923043218,-500.0,0.00038699,20]
[393684161,1762923043229,-500.0,0.00038699,20]
[393684162,1762923043240,-470.57738314,0.00038699,20]
[393684163,1762923043251,-500.0,0.00038699,20]
[393684164,1762923043261,-500.0,0.00038699,20]
[393684165,1762923043272,-215.45966834,0.00038699,20]
[393684166,1762923043283,-268.14366734,0.00038699,20]
[393684167,1762923043294,-528.71136292,0.00038699,20]
[393684168,1762923043304,-500.0,0.00038699,20]
[393684169,1762923043319,-500.0,0.00038699,20]
[393684170,1762923043330,-502.25,0.00038699,20]
[393684171,1762923043341,-502.25,0.00038699,20]
[393684172,1762923043351,-500.0,0.00038699,20]
[393684173,1762923043362,-456.30568142,0.00038699,20]
[393684174,1762923043372,-500.0,0.00038699,20]
[393684175,1762923043384,-500.0,0.00038699,7]
[393684176,1762923043394,-500.0,0.00038699,7]
[393684177,1762923043405,-500.0,0.00038699,20]
[393684178,1762923043415,-500.0,0.00038699,20]
[393684179,1762923043426,-500.0,0.00038699,20]
[393684180,1762923043436,-500.0,0.00038699,20]
[393684182,1762923043447,-417.127979,0.00038699,20]
[393684183,1762923043458,-500.0,0.00038699,20]
[393684184,1762923043468,-500.0,0.00038699,20]
[393684185,1762923043479,-334.33756947,0.00038699,20]
[393684186,1762923043490,-500.0,0.00038699,20]
[393684187,1762923043500,-500.0,0.00038699,20]
[393684190,1762923043511,-501.47736984,0.00038699,20]
[393684192,1762923043521,-500.0,0.00038699,20]
[393684193,1762923043531,-500.0,0.00038699,20]
[393684194,1762923043541,-641.51911861,0.00038699,20]
[393684195,1762923043552,-500.0,0.00038699,20]
[393684196,1762923043562,-500.0,0.00038699,20]
[393684197,1762923043572,-506.75940555,0.00038699,20]
[393684198,1762923043583,-500.0,0.00038699,20]
[393684199,1762923043593,-407.13770201,0.00038699,20]
[393684200,1762923043603,-167.67201,0.00038699,20]
[393684201,1762923043613,-500.0,0.00038699,20]
[393684202,1762923043624,-320.38037889,0.00038699,20]
[393684203,1762923043635,-500.0,0.00038699,20]
[393684204,1762923043645,-387.26213362,0.00038699,20]
[393684205,1762923043655,-601.87031571,0.00038699,20]
[393684206,1762923043665,-342.58271859,0.00038699,20]
[393684207,1762923043675,-500.0,0.00038699,20]
[393684208,1762923043685,-500.0,0.00038699,20]
[393684209,1762923043696,-500.0,0.00038699,20]
[393684210,1762923043706,-500.0,0.00038699,20]
[393684211,1762923043717,-158.901087,0.00038699,20]
[393684212,1762923043727,-500.0,0.00038699,20]
[393684213,1762923043737,-500.0,0.00038699,20]
[393684214,1762923043750,-500.0,0.00038699,20]
[393684215,1762923043760,-217.59002342,0.00038699,20]
[393684216,1762923043772,-500.0,0.00038699,20]
[393684217,1762923043782,-500.0,0.00038699,20]
[393684218,1762923043795,-500.0,0.00038699,20]
[393684219,1762923043805,-439.11171032,0.00038699,20]
[393684220,1762923043814,-500.0,0.00038699,20]
[393684221,1762923043826,-174.78220411,0.00038699,20]
[393684222,1762923043836,-435.93529023,0.00038699,20]
[393684223,1762923043846,-615.16247495,0.00038699,20]
[393684224,1762923043856,-500.0,0.00038699,20]
[393684225,1762923043867,-500.0,0.00038699,20]
[393684226,1762923043878,-500.0,0.00038699,20]
[393684227,1762923043889,-170.00184787,0.00038699,20]
[393684228,1762923043899,-500.0,0.00038699,20]
[393684229,1762923043910,-357.91,0.00038699,20]
[393684230,1762923043921,-500.0,0.00038699,20]
[393684231,1762923043931,-500.0,0.00038699,20]
[393684232,1762923043941,-500.0,0.00038699,20]
[393684233,1762923043952,-500.0,0.00038699,20]
[393684234,1762923043963,-327.21176771,0.00038699,20]
[393684235,1762923043973,-500.0,0.00038699,20]
[393684236,1762923043983,-500.0,0.00038699,20]
[393684237,1762923043994,-500.0,0.00038699,20]
[393684238,1762923044005,-500.0,0.00038699,20]
[393684239,1762923044015,-500.0,0.00038699,20]
[393684240,1762923044027,-500.0,0.00038699,20]
[393684241,1762923044038,-449.30969062,0.00038699,20]
[393684242,1762923044049,-634.72269652,0.00038699,20]
[393684243,1762923044059,-198.89734712,0.00038699,20]
[393684244,1762923044069,-500.0,0.00038699,20]
[393684245,1762923044079,-232.6242709,0.00038699,20]
[393684246,1762923044089,-500.0,0.00038699,20]
[393684247,1762923044099,-500.0,0.00038699,20]
[393684248,1762923044109,-511.86806899,0.00038699,20]
[393684249,1762923044120,-253.19758556,0.00038699,20]
[393684250,1762923044135,-500.0,0.00038699,20]
[393684251,1762923044150,-411.22957084,0.00038699,20]
[393684252,1762923044160,-545.10556493,0.00038699,20]
[393684253,1762923044170,-500.0,0.00038699,20]
[393684254,1762923044181,-176.93731009,0.00038699,20]
[393684255,1762923044191,-500.0,0.00038699,20]
[393684256,1762923044202,-244.69372612,0.00038699,20]
[393684257,1762923044212,-500.0,0.00038699,20]
[393684258,1762923044222,-500.0,0.00038699,20]
[393684259,1762923044233,-427.71346725,0.00038699,20]
[393684260,1762923044244,-500.0,0.00038699,20]
[393684261,1762923044254,-500.0,0.00038699,20]
[393684262,1762923044264,-500.0,0.00038699,20]
[393684263,1762923044275,-500.0,0.00038699,20]
[393684264,1762923044286,-423.99708668,0.00038699,20]
[393684265,1762923044296,-455.04547876,0.00038699,20]
[393684266,1762923044306,-600.82079861,0.00038699,20]
[393684267,1762923044317,-500.0,0.00038699,20]
[393684268,1762923044327,-500.0,0.00038699,20]
[393684269,1762923044338,-500.0,0.00038699,20]
[393684270,1762923044348,-500.0,0.00038699,20]
[393684271,1762923044358,-488.64306458,0.00038699,20]
[393684272,1762923044368,-500.0,0.00038699,120]
[393684273,1762923044378,-431.37107181,0.00038699,120]
[393684274,1762923044388,-500.0,0.00038699,20]
[393684275,1762923044399,-500.0,0.00038699,20]
[393684276,1762923044409,-354.23147849,0.00038699,20]
[393684277,1762923044419,-500.0,0.00038699,20]
[393684278,1762923044428,-500.0,0.00038699,20]
[393684279,1762923044438,-413.05562264,0.00038699,20]
[393684280,1762923044448,-512.33417109,0.00038699,20]
[393684281,1762923044459,-500.0,0.00038699,20]
[393684282,1762923044469,-500.0,0.00038699,20]
[393684283,1762923044479,-153.65014957,0.00038699,20]
[393684284,1762923044490,-500.0,0.00038699,20]
[393684285,1762923044500,-208.13728885,0.00038699,20]
[393684286,1762923044510,-500.0,0.00038699,20]
[393684287,1762923044520,-526.65583009,0.00038699,20]
[393684288,1762923044530,-482.44100666,0.00038699,20]
[393684289,1762923044540,-535.90484094,0.00038699,20]
[393684290,1762923044551,-313.13830214,0.00038699,20]
[393684291,1762923044561,-500.0,0.00038699,20]
[393684292,1762923044571,-500.0,0.00038699,20]
[393684293,1762923044582,-468.96653166,0.00038699,20]
[393684294,1762923044593,-266.08606702,0.00038699,20]
[393684295,1762923044603,-500.0,0.00038699,20]
[393684296,1762923044614,-500.0,0.00038699,20]
[393684297,1762923044624,-442.50903154,0.00038699,20]
[393684298,1762923044634,-500.0,0.00038699,20]
[393684299,1762923044646,-500.0,0.00038699,20]
[393684300,1762923044656,-518.80896609,0.00038699,20]
[393684301,1762923044666,-500.0,0.00038699,20]
[393684302,1762923044676,-409.32971404,0.00038699,20]
[393684303,1762923044687,-500.0,0.00038699,20]
[393684304,1762923044696,-500.0,0.00038699,20]
[393684305,1762923044707,-500.0,0.00038699,20]
[393684306,1762923044718,-432.22942733,0.00038699,20]
[393684307,1762923044729,-500.0,0.00038699,20]
[393684308,1762923044914,-248.00550113,0.00038699,20]
[393684309,1762923044925,-500.0,0.00038699,20]
[393684310,1762923044934,-500.0,0.00038699,20]
[393684311,1762923044944,-167.36292407,0.00038699,20]
[393684312,1762923044954,-500.0,0.00038699,20]
[393684313,1762923044964,-324.05973832,0.00038699,20]
[393684314,1762923044973,-480.09712397,0.00038699,20]
[393684315,1762923044983,-500.0,0.00038699,20]
[393684316,1762923044992,-500.0,0.00038699,20]
[393684317,1762923045003,-500.0,0.00038699,20]
[393684318,1762923045012,-500.0,0.00038699,20]
[393684319,1762923045023,-500.0,0.00038699,20]
[393684320,1762923045033,-1000.0,0.00038699,20]
[393684321,1762923045043,-1000.0,0.00038699,20]
[393684322,1762923045054,-500.0,0.00038699,20]
[393684323,1762923045064,-500.0,0.00038699,20]
[393684324,1762923045073,-500.0,0.00038699,20]
[393684325,1762923045083,-171.52677033,0.00038699,20]
[393684326,1762923045093,-500.0,0.00038699,20]
[393684327,1762923045103,-500.0,0.00038699,20]
[393684328,1762923045112,-567.80606151,0.00038699,20]
[393684329,1762923045122,-500.0,0.00038699,20]
[393684330,1762923045132,-500.0,0.00038699,20]
[393684331,1762923045141,-500.0,0.00038699,20]
[393684332,1762923045151,-484.81100317,0.00038699,20]
[393684333,1762923045161,-500.0,0.00038699,20]
[393684334,1762923045171,-438.28533428,0.00038699,20]
[393684335,1762923045180,-500.0,0.00038699,20]
[393684336,1762923045189,-500.0,0.00038699,20]
[393684337,1762923045199,-500.0,0.00038699,20]
[393684338,1762923045208,-1000.0,0.00038699,2]
[393684339,1762923045217,-241.82222595,0.00038699,20]
[393684340,1762923045227,-1000.0,0.00038699,2]
[393684341,1762923045237,-441.02101728,0.00038699,20]
[393684342,1762923045247,-500.0,0.00038699,20]
[393684343,1762923045256,-500.0,0.00038699,20]
[393684344,1762923045266,-500.0,0.00038699,20]
[393684345,1762923045276,-500.0,0.00038699,20]
[393684346,1762923045286,-500.0,0.00038699,20]
[393684347,1762923045295,-1652.2,0.00038699,20]
[393684348,1762923045305,-500.0,0.00038699,20]
[393684349,1762923045315,-1652.2,0.00038699,20]
[393684350,1762923045325,-500.0,0.00038699,20]
[393684351,1762923045334,-500.0,0.00038699,20]
[393684352,1762923045344,-500.0,0.00038699,20]
[393684353,1762923045354,-500.0,0.00038699,20]
[393684354,1762923045363,-403.52996554,0.00038699,20]
[393684355,1762923045373,-531.22918063,0.00038699,20]
[393684356,1762923045384,-387.90486391,0.00038699,20]
[393684357,1762923045394,-508.07098749,0.00038699,20]
[393684358,1762923045404,-500.0,0.00038699,20]
[393684359,1762923045413,-481.83570486,0.00038699,20]
[393684360,1762923045423,-500.0,0.00038699,20]
[393684361,1762923045433,-500.0,0.00038699,20]
[393684362,1762923045442,-500.0,0.00038699,20]
[393684363,1762923045453,-647.53181341,0.00038699,20]
[393684364,1762923045506,-179.90899614,0.00038698,20]
[393684365,1762923045516,-410.88818659,0.00038699,20]
[393684366,1762923045526,-497.10281715,0.00038699,20]
[393684367,1762923045887,-500.0,0.00038698,20]
[393684368,1762923045898,-561.31718285,0.00038699,20]
[393684369,1762923045908,-57.75706261,0.00038699,20]
[393684370,1762923046331,-227.11581157,0.00038659,13]
[393684371,1762923046341,-500.0,0.00038698,20]
[393684372,1762923046351,-442.24293739,0.00038699,20]
[393684373,1762923046361,-569.83395108,0.00038699,20]
[393684374,1762923046371,-500.0,0.00038699,20]
[393684375,1762923046381,-500.0,0.00038699,20]
[393684376,1762923046391,-500.0,0.00038699,20]
[393684377,1762923046400,-32.84729896,0.00038699,20]
[393684378,1762923046481,-115.47970853,0.00038699,20]
[393684715,1762923525119,183.09,0.00013699,2]
[393684717,1762923649027,553.94101502,0.00030137,120]
[393684718,1762923666066,152.71771165,0.00013699,2]
[393684719,1762923666127,152.76602309,0.00013699,2]
[393684725,1762924060590,151.0,0.00013699,2]
[393684726,1762924061509,156.12861843,0.00013699,2]
[393684739,1762924232654,-183.09,0.00020187,2]
[393684740,1762924232664,-324.38332162,0.00022206,2]
[393684741,1762924232673,-183.09,0.00026676,2]
[393684742,1762924232683,-500.0,0.00028219,2]
[393684743,1762924232692,-183.27269718,0.00030328,2]
[393684744,1762924232701,-5516.0,0.00032,3]
[393684745,1762924232710,-5516.0,0.000329,5]
[393684746,1762924232720,-1600.0,0.00032999,3]
[393684747,1762924232730,-400.0,0.00032999,3]
[393684748,1762924232739,-174.38893912,0.00033033,2]
[393684749,1762924232754,-183.09,0.00033165,2]
[393684750,1762924232764,-207.33154994,0.00034534,120]
[393684751,1762924232774,-174.38893911,0.00035217,2]
[393684752,1762924232783,-150.99,0.00036274,2]
[393684753,1762924232793,-2503.07,0.00036351,2]
[393684754,1762924232802,-572.7,0.00036351,2]
[393684755,1762924232812,-9475.38625591,0.00036401,2]
[393684756,1762924232823,-479.199,0.00036401,2]
[393684763,1762924238285,-1721.25,0.00036401,2]
[393684783,1762924240329,-287.017951,0.00036219,2]
[393684784,1762924240339,-3821.61474409,0.00036401,2]
[393684785,1762924240349,-338.60589165,0.00036401,2]
[393684786,1762924240359,-1097.0,0.00036508,2]
[393684787,1762924240369,-4499.67,0.00036509,2]
[393684788,1762924240382,-925.372,0.00036509,45]
[393684789,1762924240392,-551.29,0.00036549,2]
[393684790,1762924240401,-152.43,0.00036642,120]
[393684791,1762924240411,-200.0,0.00036776,2]
[393684792,1762924240421,-999.0,0.00036795,3]
[393684793,1762924240431,-2513.95,0.00036803,2]
[393684794,1762924240440,-502.73540226,0.00036828,5]
[393684795,1762924240450,-1053.0,0.00036986,120]
[393684796,1762924240460,-207.33154994,0.00037273,120]
[393684797,1762924240470,-174.38893911,0.000374,2]
[393684798,1762924240480,-822.0,0.00037499,2]
[393684799,1762924240491,-1274.0,0.00037499,2]
[393684800,1762924240500,-813.0,0.00037499,2]
[393684801,1762924240510,-906.0,0.00037499,2]
[393684802,1762924240520,-1189.0,0.00037499,2]
[393684803,1762924240530,-2143.0,0.00037499,2]
[393684804,1762924240540,-560.0,0.00037499,2]
[393684805,1762924240549,-969.123,0.00037499,2]
[393684806,1762924240559,-6482.0,0.00037499,2]
[393684807,1762924240573,-12565.4543459,0.00037499,2]
[393684808,1762924240583,-15274.9219398,0.000375,2]
[393684809,1762924240594,-478.56668374,0.00037521,2]
[393684810,1762924240604,-513.16,0.0003755,2]
[393684811,1762924240613,-516.44191179,0.00037588,2]
[393684812,1762924240623,-150.0,0.00037598,2]
[393684813,1762924240634,-301.9,0.00037598,2]
[393684814,1762924240644,-168.0,0.00037697,2]
[393684815,1762924240654,-200.0,0.00037824,2]
[393684816,1762924240664,-44311.94,0.00037833,2]
[393684817,1762924240674,-500.0,0.00037873,5]
[393684818,1762924240683,-201.0,0.00037936,2]
[393684819,1762924240694,-201.0,0.00037967,120]
[393684820,1762924240704,-167.234,0.00038,120]
[393684821,1762924240714,-170.0,0.00038,30]
[393684822,1762924240723,-168.0,0.00038003,2]
[393684823,1762924240733,-1411.2074754,0.000381,33]
[393684825,1762924240744,-150.0,0.0003826,120]
[393684827,1762924240753,-213.0,0.00038304,120]
[393684829,1762924240763,-404.634897,0.00038488,2]
[393684831,1762924240772,-195.48190412,0.00038498,13]
[393684833,1762924240782,-384.42493333,0.00038498,2]
[393684835,1762924240792,-178.37470947,0.00038499,2]
[393684837,1762924240801,-400.0,0.000385,14]
[393684839,1762924240811,-12619.52003185,0.00038505,2]
[393684841,1762924240820,-168.0,0.00038553,2]
[393684843,1762924240830,-404.63489692,0.00038557,2]
[393684845,1762924240839,-420.0,0.00038558,7]
[393684847,1762924240849,-384.42493332,0.00038566,2]
[393684849,1762924240858,-300.0,0.00038575,30]
[393684851,1762924240868,-500.0,0.00038585,15]
[393684853,1762924240877,-500.0,0.00038585,15]
[393684855,1762924240887,-500.0,0.00038585,15]
[393684858,1762924240897,-500.0,0.00038585,15]
[393684860,1762924240906,-500.0,0.00038585,15]
[393684862,1762924240916,-500.0,0.00038585,15]
[393684864,1762924240926,-500.0,0.00038585,15]
[393684866,1762924240936,-500.0,0.00038585,15]
[393684868,1762924240945,-500.0,0.00038585,15]
[393684870,1762924240955,-500.0,0.00038585,15]
[393684872,1762924240965,-500.0,0.00038585,15]
[393684874,1762924240974,-500.0,0.00038585,15]
[393684876,1762924240984,-500.0,0.00038585,15]
[393684878,1762924240994,-215.6897191,0.00038585,15]
[393684880,1762924241004,-500.0,0.00038585,15]
[393684882,1762924241013,-500.0,0.00038585,15]
[393684885,1762924241023,-500.0,0.00038585,15]
[393684887,1762924241032,-500.0,0.00038585,15]
[393684888,1762924241043,-610.06116892,0.00038585,15]
[393684891,1762924241052,-500.0,0.00038585,15]
[393684893,1762924241062,-500.0,0.00038585,15]
[393684895,1762924241073,-500.0,0.00038585,15]
[393684897,1762924241086,-500.0,0.00038585,15]
[393684899,1762924241096,-500.0,0.00038585,15]
[393684901,1762924241106,-500.0,0.00038585,15]
[393684903,1762924241115,-500.0,0.00038585,15]
[393684905,1762924241126,-500.0,0.00038585,15]
[393684907,1762924241135,-500.0,0.00038585,15]
[393684909,1762924241145,-500.0,0.00038585,15]
[393684911,1762924241156,-500.0,0.00038585,15]
[393684913,1762924241165,-500.0,0.00038585,15]
[393684915,1762924241175,-500.0,0.00038585,15]
[393684917,1762924241185,-500.0,0.00038585,15]
[393684919,1762924241194,-500.0,0.00038585,15]
[393684921,1762924241204,-500.0,0.00038585,15]
[393684923,1762924241213,-500.0,0.00038585,15]
[393684925,1762924241223,-500.0,0.00038585,15]
[393684927,1762924241234,-500.0,0.00038585,15]
[393684929,1762924241243,-500.0,0.00038585,15]
[393684931,1762924241252,-500.0,0.00038585,15]
[393684933,1762924241261,-500.0,0.00038585,15]
[393684935,1762924241271,-500.0,0.00038585,15]
[393684937,1762924241280,-500.0,0.00038585,15]
[393684939,1762924241289,-500.0,0.00038585,15]
[393684941,1762924241299,-500.0,0.00038585,15]
[393684943,1762924241308,-2646.12093018,0.00038587,3]
[393684947,1762924241492,-9702.44341066,0.00038588,3]
[393684948,1762924241503,-163.53,0.00038588,2]
[393684949,1762924241512,-500.0,0.00038588,20]
[393684950,1762924241522,-500.0,0.00038588,20]
[393684951,1762924241533,-818.3,0.00038588,20]
[393684952,1762924241542,-538.01,0.00038588,20]
[393684953,1762924241552,-500.0,0.00038588,20]
[393684954,1762924241562,-500.0,0.00038588,20]
[393684955,1762924241571,-500.0,0.00038588,20]
[393684956,1762924241581,-500.0,0.00038588,20]
[393684957,1762924241590,-500.0,0.00038588,20]
[393684958,1762924241600,-500.0,0.00038588,20]
[393684959,1762924241609,-500.0,0.00038588,20]
[393684960,1762924241621,-500.0,0.00038588,20]
[393684961,1762924241630,-802.18,0.00038588,20]
[393684962,1762924241639,-500.0,0.00038588,20]
[393684963,1762924241649,-500.0,0.00038588,20]
[393684964,1762924241658,-198.23870308,0.00038588,20]
[393684965,1762924241668,-500.0,0.00038588,20]
[393684966,1762924241681,-500.0,0.00038588,20]
[393684967,1762924241690,-588.08,0.00038588,20]
[393684968,1762924241699,-516.57,0.00038588,20]
[393684969,1762924241709,-500.0,0.00038588,20]
[393684970,1762924241718,-500.0,0.00038588,20]
[393684971,1762924241728,-500.0,0.00038588,20]
[393684972,1762924241737,-962.13,0.00038588,20]
[393684973,1762924241747,-500.0,0.00038588,20]
[393684974,1762924241756,-500.0,0.00038588,20]
[393684975,1762924241765,-500.0,0.00038588,20]
[393684976,1762924241776,-822.38,0.00038588,20]
[393684977,1762924241786,-832.95,0.00038588,20]
[393684978,1762924241795,-500.0,0.00038588,20]
[393684979,1762924241805,-530.24,0.00038588,20]
[393684980,1762924241815,-500.0,0.00038588,20]
[393684981,1762924241824,-500.0,0.00038588,20]
[393684982,1762924241833,-500.0,0.00038588,20]
[393684983,1762924241843,-500.0,0.00038588,20]
[393684984,1762924241853,-500.0,0.00038588,20]
[393684985,1762924241863,-500.0,0.00038588,20]
[393684986,1762924241873,-500.0,0.00038588,20]
[393684987,1762924241884,-691.31,0.00038588,20]
[393684988,1762924241893,-500.0,0.00038588,20]
[393684989,1762924241902,-3528.16124024,0.00038588,3]
[393684990,1762924241911,-12727.8018959,0.00038588,3]
[393684991,1762924241921,-6853.4317901,0.00038589,3]
[393684992,1762924241930,-244.28384404,0.00038589,2]
[393684993,1762924241939,-500.0,0.00038596,20]
[393684994,1762924241949,-500.0,0.00038596,20]
[393684995,1762924241958,-500.0,0.00038596,20]
[393684996,1762924241968,-256.2382769,0.00038596,20]
[393684997,1762924241979,-500.0,0.00038596,20]
[393684998,1762924241988,-500.0,0.00038596,20]
[393684999,1762924241998,-500.0,0.00038596,20]
[393685000,1762924242007,-500.0,0.00038596,20]
[393685001,1762924242016,-500.0,0.00038596,2]
[393685002,1762924242025,-500.0,0.00038596,20]
[393685003,1762924242035,-500.0,0.00038597,20]
[393685004,1762924242044,-500.0,0.00038597,20]
[393685005,1762924242053,-500.0,0.00038597,20]
[393685006,1762924242063,-700.59,0.00038597,20]
[393685007,1762924242071,-500.0,0.00038597,20]
[393685008,1762924242084,-500.0,0.00038597,20]
[393685009,1762924242095,-500.0,0.00038597,20]
[393685010,1762924242105,-500.0,0.00038597,20]
[393685011,1762924242115,-628.45,0.00038597,20]
[393685012,1762924242128,-500.0,0.00038597,20]
[393685013,1762924242137,-319.29542762,0.00038597,20]
[393685014,1762924242148,-500.0,0.00038597,20]
[393685015,1762924242159,-500.0,0.00038597,20]
[393685016,1762924242169,-746.44,0.00038597,20]
[393685017,1762924242178,-500.0,0.00038597,20]
[393685018,1762924242188,-559.71,0.00038597,20]
[393685019,1762924242197,-500.0,0.00038597,20]
[393685020,1762924242208,-500.0,0.00038597,20]
[393685021,1762924242227,-500.0,0.00038597,20]
[393685022,1762924242238,-500.0,0.00038597,20]
[393685023,1762924242249,-500.0,0.00038597,20]
[393685024,1762924242259,-500.0,0.00038597,20]
[393685025,1762924242269,-500.0,0.00038597,20]
[393685026,1762924242278,-818.3,0.00038597,20]
[393685027,1762924242288,-818.3,0.00038597,20]
[393685028,1762924242298,-500.0,0.00038597,20]
[393685029,1762924242307,-538.01,0.00038597,20]
[393685030,1762924242317,-538.01,0.00038597,20]
[393685031,1762924242326,-580.98,0.00038597,20]
[393685032,1762924242336,-500.0,0.00038597,20]
[393685033,1762924242346,-500.0,0.00038597,20]
[393685034,1762924242355,-500.0,0.00038597,20]
[393685035,1762924242365,-542.2,0.00038597,20]
[393685036,1762924242374,-500.0,0.00038597,20]
[393685037,1762924242383,-500.0,0.00038597,20]
[393685038,1762924242393,-500.0,0.00038597,20]
[393685039,1762924242402,-500.0,0.00038597,20]
[393685040,1762924242411,-500.0,0.00038597,20]
[393685041,1762924242420,-500.0,0.00038597,20]
[393685042,1762924242429,-601.4,0.00038597,20]
[393685043,1762924242439,-500.0,0.00038597,20]
[393685044,1762924242448,-193.05080454,0.00038597,20]
[393685045,1762924242458,-500.0,0.00038597,20]
[393685046,1762924242467,-500.0,0.00038597,20]
[393685047,1762924242476,-500.0,0.00038597,20]
[393685048,1762924242485,-500.0,0.00038597,20]
[393685049,1762924242494,-500.0,0.00038597,20]
[393685050,1762924242503,-500.0,0.00038597,20]
[393685051,1762924242512,-540.16629085,0.00038597,20]
[393685052,1762924242522,-500.0,0.00038597,20]
[393685053,1762924242531,-500.0,0.00038597,20]
[393685054,1762924242540,-500.0,0.00038597,20]
[393685055,1762924242549,-802.18,0.00038597,20]
[393685056,1762924242557,-802.18,0.00038597,20]
[393685057,1762924242566,-500.0,0.00038597,20]
[393685058,1762924242573,-500.0,0.00038597,20]
[393685059,1762924242581,-1133.11,0.00038597,20]
[393685060,1762924242589,-500.0,0.00038597,20]